bitfinex/quotes_ETHUSD_20250210
["timestamp","ask_amount","ask_price","bid_price","bid_amount"]
[1739229758033,3.7949248,2663.3,2663.0,0.76372081]
[1739229758585,0.0401348,2663.3,2663.0,0.76372081]
[1739229760508,3.7949048,2663.3,2663.0,0.76372081]
[1739229760727,0.7777,2663.2,2661.8,0.8074]
[1739229761044,3.75575,2662.6,2662.3,0.8074]
[1739229761183,3.75545,2662.8,2662.3,0.8074]
[1739229761184,0.03866966,2662.5,2662.3,0.8074]
[1739229761382,3.75566,2662.7,2662.3,0.8074]
[1739229761679,0.03871633,2662.6,2662.3,0.8074]
[1739229761940,0.03871633,2662.6,2662.5,0.8074]
[1739229762237,3.0,2663.0,2662.5,0.8074]
[1739229762734,0.03905326,2662.9,2662.5,0.8074]
[1739229763430,3.79443326,2662.9,2662.5,0.8074]
[1739229764634,0.03905326,2662.9,2662.5,0.8074]
[1739229766100,3.79437326,2662.9,2662.5,0.8074]
[1739229767205,0.03905326,2662.9,2662.5,0.8074]
[1739229768839,0.03905326,2662.9,2662.7,0.8074]
[1739229769037,3.7777,2663.4,2662.7,0.8074]
[1739229769248,0.03757369,2663.3,2662.7,0.8074]
[1739229769407,3.0,2663.2,2662.7,0.8074]
[1739229769747,3.7924079,2663.1,2662.7,0.8074]
[1739229770804,0.0373679,2663.1,2662.7,0.8074]
[1739229771206,0.0373679,2663.1,2662.8,0.03755102]
[1739229771440,3.75493,2663.2,2662.7,0.8074]
[1739229771753,0.03739745,2663.1,2662.8,0.0075]
[1739229772046,0.03739745,2663.1,2662.9,0.73628488]
[1739229773220,3.0,2663.3,2662.9,0.73628488]
[1739229773404,3.75438,2663.6,2663.1,0.7802]
[1739229774160,0.03733774,2663.5,2663.0,0.7952]
[1739229774340,3.75362,2664.1,2663.3,0.7802]
[1739229774655,6.75375,2664.0,2663.3,0.7802]
[1739229774805,3.75392,2663.9,2663.3,0.7802]
[1739229775004,0.04104563,2663.9,2663.3,0.7802]
[1739229775205,3.75404,2663.8,2663.3,0.7802]
[1739229775405,3.79513051,2663.8,2663.3,0.7802]
[1739229775606,3.79513051,2663.8,2663.3,1.52365557]
[1739229778350,0.04109051,2663.8,2663.3,1.52365557]
[1739229778854,3.79521051,2663.8,2663.3,1.52365557]
[1739229779220,3.79521051,2663.8,2663.3,0.7802]
[1739229779829,3.79521051,2663.8,2663.7,0.75931856]
[1739229780326,4.56561051,2663.8,2663.3,0.7802]
[1739229780527,3.75432,2663.6,2663.3,0.7802]
[1739229780726,3.75446,2663.5,2663.3,0.7802]
[1739229781055,3.75432,2663.6,2663.3,0.7802]
[1739229781352,3.75432,2663.6,2663.4,0.76808021]
[1739229781513,3.75432,2663.6,2663.3,0.7802]
[1739229781714,3.75447,2663.5,2662.8,0.0075]
[1739229781916,3.75432,2663.6,2662.9,0.7561]
[1739229781917,3.75502,2663.1,2662.9,0.7561]
[1739229782257,3.0,2663.4,2662.9,1.50493874]
[1739229782561,3.0,2663.4,2663.0,0.03754745]
[1739229783830,6.75462,2663.4,2662.9,1.50493874]
[1739229784279,3.0,2663.4,2662.9,1.50493874]
[1739229784486,3.75454,2663.5,2663.0,0.03754743]
[1739229784657,3.75454,2663.5,2662.9,1.50493874]
[1739229785759,3.75454,2663.5,2663.0,0.03754748]
[1739229786557,4.52464,2663.7,2663.1,0.7561]
[1739229786756,3.75424,2663.7,2663.1,0.7561]
[1739229787299,3.75424,2663.7,2663.2,0.03754452]
[1739229787746,3.75424,2663.7,2663.1,0.7561]
[1739229788200,3.75395,2663.9,2663.2,0.0075]
[1739229788488,3.75395,2663.9,2663.5,0.74789681]
[1739229788660,7.50796,2663.9,2663.6,0.8274]
[1739229788864,3.75414,2663.8,2663.6,0.8274]
[1739229790548,3.75417,2663.7,2663.6,0.8274]
[1739229791089,3.75392,2663.9,2663.6,0.8274]
[1739229792056,3.75403,2663.8,2663.6,0.8274]
[1739229794197,3.75375,2664.0,2663.6,0.8274]
[1739229794397,3.7539,2663.9,2663.6,0.8274]
[1739229794701,3.75404,2663.8,2663.6,0.8274]
[1739229795513,3.7541,2663.8,2663.6,0.8274]
[1739229796698,3.7541,2663.8,2663.5,0.74789681]
[1739229796998,3.75425,2663.7,2663.5,0.74789681]
[1739229797303,3.75431,2663.6,2663.5,0.74789681]
[1739229797684,3.75431,2663.6,2663.2,0.8274]
[1739229798011,3.75452,2663.5,2663.2,0.8274]
[1739229798880,3.75452,2663.5,2663.3,0.75430426]
[1739229800348,3.75431,2663.7,2663.3,0.75430426]
[1739229800525,3.75417,2663.7,2663.3,0.75430426]
[1739229801337,3.75391,2663.9,2663.3,0.75430426]
[1739229801542,3.75391,2663.9,2663.4,0.8274]
[1739229801741,3.75411,2663.8,2663.4,0.8274]
[1739229802043,3.75391,2663.9,2663.4,0.8274]
[1739229802338,3.75412,2663.8,2663.4,0.8274]
[1739229803013,3.75416,2663.8,2663.4,0.8274]
[1739229803217,3.75441,2663.6,2663.4,0.8274]
[1739229803412,3.75457,2663.5,2663.3,0.75430426]
[1739229803644,3.75459,2663.4,2663.3,0.75430426]
[1739229804139,3.75459,2663.4,2663.0,0.7739]
[1739229804354,3.75524,2663.0,2662.7,0.7739]
[1739229805915,3.75497,2663.2,2662.7,0.7739]
[1739229806167,8.30338,2663.4,2662.7,0.7739]
[1739229806461,3.75476,2663.3,2662.7,0.7739]
[1739229807165,3.75476,2663.3,2662.8,0.75631009]
[1739229807871,4.54867,2663.4,2662.8,0.75631009]
[1739229808174,3.75484,2663.3,2662.8,0.75631009]
[1739229808375,3.75449,2663.5,2662.8,0.75631009]
[1739229808534,3.75575,2662.6,2662.2,0.7739]
[1739229809147,3.75589,2662.5,2662.2,0.7739]
[1739229809535,3.75574,2662.6,2662.3,0.7502951]
[1739229809960,3.75571,2662.7,2662.3,0.7502951]
[1739229810465,3.75575,2662.6,2662.3,0.7502951]
[1739229811654,3.756,2662.4,2662.1,0.19605508]
[1739229812064,3.75586,2662.5,2662.1,0.19605508]
[1739229812450,3.75586,2662.5,2662.2,0.76412958]
[1739229812978,5.35,2662.6,2662.2,0.76412958]
[1739229813275,9.10573,2662.6,2662.2,0.76412958]
[1739229814376,5.35,2662.6,2662.3,0.7739]
[1739229814580,5.35,2662.6,2662.3,0.8114575]
[1739229814876,5.35,2662.6,2662.3,0.7739]
[1739229816568,3.0,2662.8,2662.4,0.0075]
[1739229816769,3.75535,2662.9,2662.5,0.7739]
[1739229818187,3.75522,2663.0,2662.5,0.7739]
[1739229818375,7.50994,2663.2,2662.7,0.7739]
[1739229818570,9.10495,2663.2,2662.7,0.7739]
[1739229818774,3.75502,2663.1,2662.7,0.7739]
[1739229819609,5.35,2663.2,2662.7,0.7739]
[1739229820809,9.10488,2663.2,2662.7,0.7739]
[1739229821712,9.10488,2663.2,2663.0,0.75547735]
[1739229822518,3.75517,2663.0,2662.7,0.7739]
[1739229822722,3.75517,2663.0,2662.7,0.75028946]
[1739229822723,3.75533,2662.9,2662.7,0.75028946]
[1739229822877,3.75544,2662.8,2662.7,0.75028946]
[1739229823078,3.75544,2662.8,2662.5,0.7739]
[1739229825211,3.75533,2662.9,2662.6,0.76795837]
[1739229825381,7.51073,2662.9,2662.6,0.76795837]
[1739229825781,3.75533,2662.9,2662.6,0.76795837]
[1739229826114,3.75558,2662.7,2662.6,0.76795837]
[1739229826464,3.75582,2662.6,2662.3,0.7739]
[1739229826706,9.10582,2662.6,2662.3,0.7739]
[1739229828385,5.35,2662.6,2662.3,0.7739]
[1739229829574,5.35,2662.6,2662.5,0.75541786]
[1739229830176,9.10572,2662.6,2662.5,0.75541786]
[1739229830602,5.35,2662.6,2662.5,0.75541786]
[1739229831611,5.35,2662.7,2662.5,0.75541786]
[1739229833019,9.10559,2662.7,2662.5,0.75541786]
[1739229834573,5.35,2662.7,2662.5,0.75541786]
[1739229837526,5.35,2662.8,2662.5,0.75541786]
[1739229837676,3.75572,2662.6,2662.5,0.75541786]
[1739229838620,9.10572,2662.6,2662.5,0.75541786]
[1739229838773,3.75613,2662.4,2662.0,0.8123]
[1739229838978,3.75613,2662.4,2662.3,0.75880167]
[1739229840282,3.75615,2662.3,2662.0,0.8123]
[1739229841493,3.75615,2662.3,2662.2,0.76970507]
[1739229843333,9.10615,2662.3,2662.2,0.76970507]
[1739229844917,5.35,2662.3,2662.2,0.76970507]
[1739229846122,9.10615,2662.3,2662.2,0.76970507]
[1739229846325,5.35,2662.3,2662.2,0.76970507]
[1739229850434,9.10615,2662.3,2662.2,0.76970507]
[1739229851749,5.35,2662.3,2662.2,0.76970507]
[1739229852953,4.58399174,2662.3,2662.2,1.53610507]
[1739229853246,6.75544,2662.8,2662.3,0.7664]
[1739229855340,3.0,2662.8,2662.3,0.7664]
[1739229855542,3.0,2663.0,2662.3,0.7664]
[1739229855747,3.75567,2662.7,2662.3,0.7664]
[1739229855952,3.94347734,2663.5,2662.3,0.7664]
[1739229855953,0.8025,2662.8,2662.3,0.7589]
[1739229856156,3.75595,2662.5,2662.2,0.76970507]
[1739229858048,3.75603,2662.4,2662.2,0.76970507]
[1739229859836,3.75615,2662.3,2662.2,0.76970507]
[1739229861114,8.34014174,2662.3,2662.2,0.76970507]
[1739229862858,3.75635,2662.2,2661.9,0.7926]
[1739229863046,8.34014174,2662.3,2661.9,0.7926]
[1739229864731,3.7563,2662.2,2661.9,0.7926]
[1739229865168,8.34014174,2662.3,2661.9,0.7926]
[1739229865541,8.34014174,2662.3,2662.1,0.74023097]
[1739229867167,4.58399174,2662.3,2662.2,0.764]
[1739229867861,8.34014174,2662.3,2662.1,0.74023097]
[1739229869473,4.58399174,2662.3,2662.1,0.74023097]
[1739229872092,4.58399174,2662.3,2662.2,0.764]
[1739229884494,3.75573,2662.6,2662.2,0.764]
[1739229884703,4.58399174,2662.8,2662.3,0.03755943]
[1739229885001,4.58399174,2662.8,2662.4,0.8046]
[1739229885557,3.75526,2663.0,2662.5,0.0075]
[1739229885782,3.75531,2662.9,2662.5,0.0075]
[1739229886183,3.7554,2662.9,2662.5,0.0075]
[1739229886485,3.75552,2662.8,2662.4,0.8046]
[1739229886682,3.7554,2662.9,2662.4,0.8046]
[1739229887684,7.51078,2662.9,2662.4,0.8046]
[1739229887915,7.51078,2662.9,2662.7,0.76653243]
[1739229888703,3.75544,2662.8,2662.7,0.76653243]
[1739229889536,3.75538,2662.9,2662.7,0.76653243]
[1739229890596,7.51076,2662.9,2662.7,0.76653243]
[1739229890928,3.75538,2662.9,2662.7,0.76653243]
[1739229893701,7.51077,2662.9,2662.7,0.76653243]
[1739229894407,3.75544,2662.8,2662.7,0.76653243]
[1739229899635,3.75538,2662.9,2662.7,0.76653243]
[1739229899837,3.75544,2662.8,2662.7,0.76653243]
[1739229900041,4.53324,2662.8,2662.7,0.76653243]
[1739229903542,3.75615,2662.3,2662.2,0.8269]
[1739229903699,3.75615,2662.3,2662.1,0.19605389]
[1739229904113,3.75629,2662.2,2662.1,0.19605389]
[1739229904907,3.75629,2662.2,2662.1,0.94040079]
[1739229905853,7.51225,2662.4,2662.1,0.94040079]
[1739229906152,3.75611,2662.4,2662.1,0.94040079]
[1739229906344,3.75621,2662.3,2662.1,0.94040079]
[1739229908446,3.75629,2662.2,2662.1,0.94040079]
[1739229908759,3.75621,2662.3,2662.1,0.94040079]
[1739229909845,3.75592,2662.5,2662.1,0.94040079]
[1739229910938,3.75568,2662.7,2662.3,0.7948]
[1739229911560,3.75568,2662.7,2662.3,0.8323567]
[1739229912177,3.75568,2662.7,2662.3,0.7948]
[1739229916888,3.75568,2662.7,2662.6,0.74595947]
[1739229917492,3.75546,2662.8,2662.6,0.74595947]
[1739229917793,3.75546,2662.8,2662.6,1.54075947]
[1739229917991,3.75558,2662.7,2662.6,1.54075947]
[1739229918302,3.75558,2662.7,2662.6,0.74595947]
[1739229920666,3.756,2662.4,2662.1,0.19605389]
[1739229920869,3.75629,2662.2,2662.1,0.19605389]
[1739229921058,3.75629,2662.2,2662.1,0.96040281]
[1739229921596,3.75616,2662.3,2662.1,0.96040281]
[1739229921889,7.51241,2662.3,2662.1,0.96040281]
[1739229922089,3.75629,2662.2,2662.1,0.96040281]
[1739229922298,3.75616,2662.3,2662.1,0.96040281]
[1739229922496,7.51238,2662.3,2662.1,0.96040281]
[1739229922793,3.75699,2661.7,2661.6,5.39]
[1739229923004,3.75713,2661.6,2661.5,0.7778]
[1739229923331,8.41299174,2662.2,2661.3,0.7778]
[1739229923332,3.75742,2661.4,2661.3,0.7778]
[1739229923542,3.75742,2661.4,2661.3,0.9738734]
[1739229924609,3.75742,2661.4,2661.3,1.72310828]
[1739229925638,3.75742,2661.4,2661.3,0.94530828]
[1739229925998,3.75729,2661.5,2661.3,0.94530828]
[1739229926238,3.75742,2661.4,2661.3,0.94530828]
[1739229928024,3.7573,2661.5,2661.3,0.94530828]
[1739229928346,3.75742,2661.4,2661.3,0.94530828]
[1739229929300,4.58642,2661.4,2661.3,0.94530828]
[1739229929536,7.58642,2661.4,2661.3,8.28e-06]
[1739229929846,3.829,2661.2,2660.8,0.75467155]
[1739229930014,3.75812,2660.9,2660.8,0.75467155]
[1739229930739,3.7585,2660.7,2660.4,0.7778]
[1739229930956,3.75813,2660.9,2660.5,0.0075]
[1739229931131,3.75827,2660.8,2660.5,0.0075]
[1739229931337,3.75813,2660.9,2660.4,0.7778]
[1739229931505,3.75815,2660.9,2660.4,0.7778]
[1739229931843,3.75829,2660.8,2660.4,0.7778]
[1739229932433,3.75815,2660.9,2660.4,0.7778]
[1739229932603,7.51641,2660.9,2660.4,0.7778]
[1739229932802,7.51639,2660.9,2660.4,0.7778]
[1739229933244,3.75815,2660.9,2660.8,0.7778]
[1739229935250,3.75792,2661.1,2660.8,0.7778]
[1739229936355,3.75798,2661.0,2660.8,0.7778]
[1739229936525,3.75792,2661.1,2660.8,0.7778]
[1739229936856,3.75826,2660.8,2660.7,0.75246734]
[1739229938462,3.75826,2660.8,2660.7,0.74496734]
[1739229947013,4.58726,2660.8,2660.7,0.74496734]
[1739229947507,4.58726,2660.8,2659.4,0.7778]
[1739229947508,0.829,2660.7,2659.4,0.7778]
[1739229947641,3.75883,2660.4,2660.3,0.74611422]
[1739229948243,4.58783,2660.4,2660.3,0.74611422]
[1739229948684,3.75931,2660.1,2659.9,0.7778]
[1739229948982,3.75939,2660.0,2659.9,0.7778]
[1739229949489,3.75931,2660.1,2659.9,0.7778]
[1739229949656,3.75931,2660.1,2659.9,1.54483401]
[1739229949984,7.51867,2660.1,2659.9,1.54483401]
[1739229950183,3.75902,2660.3,2660.0,0.0075]
[1739229950354,3.75918,2660.2,2660.0,0.0075]
[1739229952187,3.75925,2660.1,2660.0,0.0075]
[1739229952345,3.75925,2660.1,2659.9,1.54483401]
[1739229952644,3.75939,2660.0,2659.9,1.54483401]
[1739229952844,3.75925,2660.1,2659.9,1.54483401]
[1739229953469,3.75925,2660.1,2659.9,1.55233401]
[1739229953470,3.75939,2660.0,2659.9,1.55233401]
[1739229953965,3.75939,2660.0,2659.9,0.77453401]
[1739229954165,3.75939,2660.0,2659.9,0.76703401]
[1739229954660,3.75939,2660.0,2659.9,1.11808632]
[1739229955452,3.75925,2660.1,2659.9,1.11808632]
[1739229956089,3.75939,2660.0,2659.9,1.12558632]
[1739229957592,3.75939,2660.0,2659.9,1.11808632]
[1739229958893,3.75925,2660.1,2659.9,1.11808632]
[1739229959487,7.51858,2660.1,2659.9,1.11808632]
[1739229959686,3.75925,2660.1,2659.9,1.11808632]
[1739229959983,3.75883,2660.4,2660.0,0.7916]
[1739229960189,3.75883,2660.4,2660.2,0.7916]
[1739229960389,5.37819174,2660.7,2660.0,0.7916]
[1739229960548,3.75922,2660.2,2660.0,0.7916]
[1739229960750,3.75925,2660.1,2660.0,0.7991]
[1739229961412,3.75939,2660.0,2659.9,0.76703401]
[1739229962072,3.76012,2659.5,2659.0,0.7916]
[1739229962267,3.76012,2659.5,2659.1,0.565]
[1739229962569,3.76032,2659.4,2659.1,0.565]
[1739229962767,3.76052,2659.2,2659.1,0.0075]
[1739229962974,3.76052,2659.2,2659.1,0.75192863]
[1739229963214,3.76052,2659.2,2659.1,0.74442863]
[1739229963709,3.76034,2659.4,2659.1,0.74442863]
[1739229963881,3.76034,2659.4,2659.1,0.78203118]
[1739229964080,7.52067,2659.4,2659.1,0.74442863]
[1739229964292,3.76033,2659.4,2659.1,0.74442863]
[1739229964495,3.76052,2659.2,2659.1,0.74442863]
[1739229964879,3.76095,2658.9,2658.8,0.7916]
[1739229965206,3.76095,2658.9,2658.8,0.7991]
[1739229965393,3.76095,2658.9,2658.8,0.7916]
[1739229965577,3.76095,2658.9,2658.8,1.56109129]
[1739229966021,4.55515,2658.9,2658.8,0.76949129]
[1739229966307,3.76179,2658.4,2658.1,0.7916]
[1739229966662,3.76142,2658.6,2658.3,0.73577336]
[1739229966998,3.76152,2658.5,2658.3,0.73577336]
[1739229967689,7.5229,2658.6,2658.3,0.73577336]
[1739229968016,3.76166,2658.4,2658.3,0.73577336]
[1739229968209,7.52288,2658.6,2658.3,0.73577336]
[1739229968510,3.76142,2658.6,2658.3,0.73577336]
[1739229968817,3.76135,2658.7,2658.3,0.73577336]
[1739229969365,3.76139,2658.6,2658.3,0.73577336]
[1739229970384,3.76135,2658.7,2658.3,0.73577336]
[1739229970581,3.76135,2658.7,2658.5,0.8224]
[1739229971612,3.76127,2658.7,2658.5,0.8224]
[1739229972710,3.76113,2658.8,2658.5,0.8224]
[1739229973311,3.76137,2658.6,2658.5,0.8299]
[1739229974829,3.76113,2658.8,2658.5,0.8299]
[1739229975420,3.76086,2659.0,2658.6,0.0075]
[1739229976312,3.76061,2659.2,2658.8,0.0075]
[1739229976624,3.76071,2659.1,2658.8,0.0075]
[1739229976795,7.52122,2659.2,2658.8,0.0075]
[1739229976989,3.76067,2659.1,2658.8,0.0075]
[1739229977233,3.76094,2659.0,2658.9,0.76924524]
[1739229978297,3.76068,2659.1,2658.9,0.76924524]
[1739229978486,3.76055,2659.2,2658.9,0.76924524]
[1739229978684,7.52097,2659.3,2658.9,0.76924524]
[1739229979225,3.76046,2659.3,2658.9,0.76924524]
[1739229979725,3.7607,2659.1,2658.9,0.76924524]
[1739229980731,3.76046,2659.3,2658.9,0.76924524]
[1739229981024,3.76046,2659.3,2659.0,0.8224]
[1739229981430,3.76054,2659.2,2659.0,0.8224]
[1739229981730,3.76046,2659.3,2659.0,0.8224]
[1739229982295,3.76017,2659.5,2659.0,0.8224]
[1739229983383,3.76032,2659.4,2659.0,0.8224]
[1739229985737,3.76032,2659.4,2659.3,0.77106365]
[1739229990614,3.76017,2659.5,2659.3,0.77106365]
[1739229991312,3.75996,2659.6,2659.3,0.77106365]
[1739229991490,3.76024,2659.4,2659.3,0.77106365]
[1739229993237,3.76011,2659.5,2659.3,0.77106365]
[1739229993540,3.75996,2659.6,2659.3,0.77106365]
[1739229994301,3.76024,2659.4,2659.3,0.77106365]
[1739229995425,7.52006,2659.6,2659.3,0.77106365]
[1739229995738,3.76017,2659.5,2659.3,0.77106365]
[1739229996535,0.7619,2659.7,2659.3,0.77106365]
[1739229996721,3.75993,2659.7,2659.4,0.7668]
[1739229996924,3.76006,2659.6,2659.4,0.7668]
[1739229998140,3.7601,2659.5,2659.3,0.77106365]
[1739229998318,3.76024,2659.4,2659.3,0.77106365]
[1739230000024,3.76081,2659.0,2658.9,0.0075]
[1739230000417,3.76109,2658.8,2658.7,0.7668]
[1739230000735,3.76096,2658.9,2658.8,0.0075]
[1739230002563,3.76109,2658.8,2658.7,0.76940737]
[1739230002864,4.52519,2658.8,2658.7,0.76940737]
[1739230003174,0.7641,2658.8,2658.2,0.7668]
[1739230003364,3.76205,2658.2,2658.0,0.0075]
[1739230003536,3.76198,2658.2,2658.0,0.0075]
[1739230003731,3.76182,2658.3,2658.1,0.74004929]
[1739230004824,3.76182,2658.3,2658.1,0.77231449]
[1739230005068,3.76159,2658.5,2658.1,0.77231449]
[1739230005232,0.7641,2658.6,2658.3,0.7668]
[1739230005233,3.76145,2658.6,2658.3,0.7668]
[1739230005643,3.76131,2658.7,2658.3,0.7668]
[1739230005829,3.76131,2658.7,2658.3,0.7990652]
[1739230006033,7.52266,2658.7,2658.3,0.7990652]
[1739230006233,3.76095,2658.9,2658.4,0.0075]
[1739230006471,3.76118,2658.8,2658.4,0.04511329]
[1739230006766,3.76118,2658.8,2658.4,0.0397652]
[1739230007356,3.76095,2658.9,2658.6,0.0075]
[1739230007544,7.52151,2659.1,2658.6,0.75327035]
[1739230007863,3.76098,2658.9,2658.6,0.78553555]
[1739230010330,3.76097,2658.9,2658.6,0.78553555]
[1739230010531,3.76116,2658.8,2658.6,0.78553555]
[1739230010756,3.76097,2658.9,2658.6,0.78553555]
[1739230010984,3.76123,2658.7,2658.6,0.78553555]
[1739230011168,3.76123,2658.7,2658.6,0.77803555]
[1739230013049,3.76123,2658.7,2658.6,0.0322652]
[1739230014970,3.76123,2658.7,2658.6,0.8020652]
[1739230016187,3.76123,2658.7,2658.6,0.0322652]
[1739230020200,3.7611,2658.8,2658.6,0.0322652]
[1739230020382,3.76123,2658.7,2658.6,0.0322652]
[1739230020585,3.7611,2658.8,2658.6,0.0322652]
[1739230021170,3.76062,2659.2,2658.8,0.7698]
[1739230021387,3.76095,2658.9,2658.8,0.7698]
[1739230022374,3.76109,2658.8,2658.7,0.0397652]
[1739230022573,3.76095,2658.9,2658.7,0.79095411]
[1739230022776,3.76088,2659.0,2658.7,0.79095411]
[1739230023488,3.76109,2658.8,2658.7,0.78345411]
[1739230029344,3.76095,2658.9,2658.8,0.79]
[1739230030239,9.10497174,2659.4,2658.8,0.79]
[1739230030240,3.76073,2659.1,2658.8,0.79]
[1739230030595,7.52153,2659.1,2658.8,0.79]
[1739230030833,3.76048,2659.3,2658.9,0.015]
[1739230031004,7.52098,2659.3,2659.1,0.0075]
[1739230031209,3.76048,2659.3,2659.1,0.0075]
[1739230031946,3.76018,2659.5,2659.1,0.0075]
[1739230032108,3.76018,2659.5,2659.0,0.79]
[1739230032109,3.76039,2659.3,2659.0,0.79]
[1739230033020,3.75991,2659.7,2659.3,0.79]
[1739230033624,3.75968,2659.8,2659.4,0.0075]
[1739230033834,3.7607,2660.2,2659.3,0.79]
[1739230034006,3.76005,2659.6,2659.3,0.79]
[1739230035015,7.5195,2659.8,2659.3,0.79]
[1739230035216,7.51949,2659.8,2659.3,0.79]
[1739230035446,3.75971,2659.8,2659.3,0.79]
[1739230035825,7.51948,2659.8,2659.3,0.79]
[1739230036350,3.75988,2659.7,2659.3,0.79]
[1739230036950,3.76015,2659.5,2659.3,0.79]
[1739230038121,3.75988,2659.7,2659.3,0.79]
[1739230038329,3.75997,2659.6,2659.3,0.79]
[1739230038540,3.75988,2659.7,2659.3,0.79]
[1739230041449,3.76009,2659.6,2659.3,0.79]
[1739230041656,3.75988,2659.7,2659.3,0.79]
[1739230042058,7.51981,2659.7,2659.3,0.79]
[1739230042421,3.75988,2659.7,2659.3,0.79]
[1739230043670,3.75988,2659.7,2659.6,0.0075]
[1739230043965,3.75962,2659.9,2659.6,0.0075]
[1739230044139,0.829,2660.2,2659.6,0.0075]
[1739230044140,3.75982,2659.7,2659.6,0.0075]
[1739230044770,3.75982,2659.7,2659.6,0.75395066]
[1739230045768,3.75982,2659.7,2659.6,0.74645066]
[1739230046571,3.75968,2659.8,2659.6,0.74645066]
[1739230046871,3.75964,2659.9,2659.6,0.74645066]
[1739230047575,3.75976,2659.8,2659.6,0.74645066]
[1739230047743,4.58882,2659.7,2659.6,0.74645066]
[1739230049870,3.76038,2659.3,2659.0,0.8272]
[1739230050071,3.76067,2659.1,2659.0,0.8272]
[1739230050273,3.76067,2659.1,2658.8,0.8347]
[1739230050479,3.76055,2659.2,2658.8,0.8272]
[1739230050636,0.7816,2659.3,2658.8,0.8272]
[1739230050845,3.76109,2658.8,2658.7,0.0322652]
[1739230052791,3.76109,2658.8,2658.7,0.77853721]
[1739230057446,3.76109,2658.8,2658.7,0.0322652]
[1739230057765,4.54269,2658.8,2658.7,0.0322652]
[1739230059861,3.76109,2658.8,2658.7,0.0322652]
[1739230061886,4.54269,2658.8,2658.7,0.0322652]
[1739230062405,7.54269,2658.8,2658.7,0.0322652]
[1739230069998,7.54269,2658.8,2658.7,5.2e-06]
[1739230070298,12.12668174,2658.8,2658.7,5.2e-06]
[1739230072198,12.77668174,2658.8,2658.7,5.2e-06]
[1739230072498,12.31218892,2658.8,2658.7,5.2e-06]
[1739230073718,12.96218892,2658.8,2658.7,5.2e-06]
[1739230074020,12.86218892,2658.8,2658.7,5.2e-06]
[1739230074222,12.96218892,2658.8,2658.7,5.2e-06]
[1739230074683,12.86218892,2658.8,2658.7,5.2e-06]
[1739230075383,12.96218892,2658.8,2658.7,5.2e-06]
[1739230076820,12.86218892,2658.8,2658.7,5.2e-06]
[1739230077833,12.96218892,2658.8,2658.7,5.2e-06]
[1739230077989,12.86218892,2658.8,2658.7,5.2e-06]
[1739230079120,12.96218892,2658.8,2658.7,5.2e-06]
[1739230079331,12.86218892,2658.8,2658.7,5.2e-06]
[1739230080628,12.31218892,2658.8,2658.7,5.2e-06]
[1739230081505,12.86218892,2658.8,2658.7,5.2e-06]
[1739230082124,3.76251,2657.8,2657.7,0.8332]
[1739230085036,3.76265,2657.7,2657.6,0.74052031]
[1739230086849,3.76265,2657.7,2657.6,1.57372031]
[1739230097450,3.7625,2657.9,2657.6,1.57372031]
[1739230097656,3.76215,2658.1,2657.8,0.015]
[1739230097825,3.76222,2658.0,2657.9,0.7769]
[1739230102341,7.52435,2658.1,2657.9,0.7769]
[1739230102739,3.76222,2658.0,2657.9,0.7769]
[1739230104963,3.76251,2657.8,2657.7,0.7695]
[1739230112853,3.76251,2657.8,2657.7,0.5207]
[1739230113663,3.76265,2657.7,2657.6,0.74052031]
[1739230115968,3.76265,2657.7,2657.6,1.51002031]
[1739230116354,3.76245,2657.9,2657.6,1.51002031]
[1739230116576,3.76245,2657.9,2657.7,0.7695]
[1739230118075,3.76222,2658.0,2657.7,0.7695]
[1739230118583,3.76198,2658.2,2657.9,0.7695]
[1739230118878,3.76216,2658.1,2657.9,0.7695]
[1739230119180,3.76222,2658.0,2657.9,0.7695]
[1739230119472,3.76209,2658.1,2657.9,0.7695]
[1739230122684,3.76222,2658.0,2657.9,0.7695]
[1739230123519,3.76253,2657.8,2657.7,0.7695]
[1739230124209,3.76265,2657.7,2657.6,0.00257225]
[1739230124411,3.76265,2657.7,2657.6,2.25e-06]
[1739230124907,4.59585,2657.7,2657.6,2.25e-06]
[1739230129215,3.76265,2657.7,2657.6,2.25e-06]
[1739230129913,3.76265,2657.7,2657.6,0.76950225]
[1739230130495,3.76255,2657.8,2657.6,0.76950225]
[1739230131198,3.76225,2658.0,2657.6,0.76950225]
[1739230131444,3.76239,2657.9,2657.6,0.76950225]
[1739230131623,3.76262,2657.8,2657.6,0.76950225]
[1739230132314,3.76239,2657.9,2657.6,0.76950225]
[1739230133030,3.76254,2657.8,2657.7,0.76516067]
[1739230133232,3.76239,2657.9,2657.7,0.76516067]
[1739230135008,3.0,2658.3,2657.9,3.76226]
[1739230135214,3.0,2658.3,2657.7,4.52777067]
[1739230135215,3.76187,2658.3,2657.8,0.7862]
[1739230135416,3.76201,2658.2,2657.8,0.7862]
[1739230136827,3.7623,2658.0,2657.8,0.7862]
[1739230138759,3.762,2658.2,2657.8,0.7862]
[1739230138909,3.76172,2658.4,2658.1,0.7712]
[1739230162586,4.57186,2657.9,2657.8,0.75831346]
[1739230168607,3.76236,2657.9,2657.8,0.75831346]
[1739230171892,3.76236,2657.9,2657.8,1.55961346]
[1739230173619,3.76223,2658.0,2657.8,1.55961346]
[1739230173831,3.76236,2657.9,2657.8,1.55961346]
[1739230174022,3.76226,2658.0,2657.8,1.55961346]
[1739230174330,3.76236,2657.9,2657.8,1.55961346]
[1739230174486,3.76236,2657.9,2657.8,0.75831346]
[1739230179736,3.76226,2658.0,2657.8,0.75831346]
[1739230179912,7.52462,2658.0,2657.8,0.75831346]
[1739230180114,3.76236,2657.9,2657.8,0.75831346]
[1739230183512,7.52457,2658.0,2657.8,0.75831346]
[1739230184243,3.76236,2657.9,2657.8,0.75831346]
[1739230186841,3.76226,2658.0,2657.8,0.75831346]
[1739230189328,3.76226,2658.0,2657.9,0.8013]
[1739230189882,3.76202,2658.2,2657.9,0.8013]